fUSD/lending_fUSD_20241024
["ID","MTS","AMOUNT","RATE_DAILY","PERIOD"]
[340766301,1729789837651,-500.0,0.00062465,120]
[340766302,1729789837661,-500.0,0.00062465,120]
[340766303,1729789837670,-510.24138926,0.00062465,120]
[340766304,1729789837679,-500.0,0.00062465,120]
[340766305,1729789837688,-500.0,0.00062465,120]
[340766306,1729789837697,-511.10997346,0.00062465,120]
[340766307,1729789837707,-500.0,0.00062465,120]
[340766308,1729789837716,-500.0,0.00062465,120]
[340766309,1729789837726,-500.0,0.00062465,120]
[340766310,1729789837735,-494.59271543,0.00062465,120]
[340766311,1729789837745,-502.42056112,0.00062465,120]
[340766312,1729789837754,-500.0,0.00062465,120]
[340766313,1729789837763,-506.86492952,0.00062465,120]
[340766314,1729789837773,-500.0,0.00062465,120]
[340766315,1729789837783,-500.0,0.00062465,120]
[340766316,1729789837792,-504.7689669,0.00062465,120]
[340766317,1729789837803,-500.0,0.00062465,120]
[340766318,1729789837813,-500.0,0.00062465,120]
[340766319,1729789837822,-500.0,0.00062465,120]
[340766320,1729789837831,-500.0,0.00062465,120]
[340766321,1729789837841,-500.0,0.00062465,120]
[340766322,1729789837851,-500.0,0.00062465,120]
[340766323,1729789837861,-500.0,0.00062465,120]
[340766324,1729789837871,-500.0,0.00062465,120]
[340766325,1729789837880,-500.0,0.00062465,120]
[340766326,1729789837890,-500.0,0.00062465,120]
[340766327,1729789837899,-495.1464269,0.00062465,120]
[340766351,1729789838126,-4.8535731,0.00062465,120]
[340766353,1729789838135,-500.0,0.00062465,120]
[340766355,1729789838144,-500.0,0.00062465,120]
[340766356,1729789838155,-500.0,0.00062465,120]
[340766358,1729789838164,-500.0,0.00062465,120]
[340766360,1729789838173,-202.67309598,0.00062465,120]
[340766363,1729789838185,-297.32690402,0.00062465,120]
[340766365,1729789838195,-500.0,0.00062465,120]
[340766367,1729789838204,-500.0,0.00062465,120]
[340766369,1729789838214,-500.0,0.00062465,120]
[340766371,1729789838223,-500.0,0.00062465,120]
[340766372,1729789838232,-461.00599164,0.00062465,120]
[340766375,1729789838242,-500.0,0.00062465,120]
[340766377,1729789838252,-500.0,0.00062465,120]
[340766378,1729789838261,-508.7063318,0.00062465,120]
[340766380,1729789838270,-500.0,0.00062465,120]
[340766382,1729789838279,-500.0,0.00062465,120]
[340766384,1729789838289,-500.0,0.00062465,120]
[340766386,1729789838298,-417.70631718,0.00062465,120]
[340766388,1729789838307,-504.32545994,0.00062465,120]
[340766390,1729789838319,-500.0,0.00062465,120]
[340766392,1729789838328,-502.44335932,0.00062465,120]
[340766394,1729789838337,-500.0,0.00062465,120]
[340766396,1729789838346,-500.0,0.00062465,120]
[340766398,1729789838355,-500.0,0.00062465,120]
[340766400,1729789838364,-500.0,0.00062465,120]
[340766402,1729789838373,-500.0,0.00062465,120]
[340766404,1729789838383,-500.0,0.00062465,120]
[340766405,1729789838392,-500.0,0.00062465,120]
[340766407,1729789838402,-500.0,0.00062465,120]
[340766409,1729789838412,-500.0,0.00062465,120]
[340766411,1729789838428,-500.0,0.00062465,120]
[340766413,1729789838437,-500.0,0.00062465,120]
[340766415,1729789838447,-339.65297489,0.00062465,120]
[340766417,1729789838456,-506.42574123,0.00062465,120]
[340766419,1729789838465,-500.0,0.00062465,120]
[340766421,1729789838473,-500.0,0.00062465,120]
[340766423,1729789838483,-545.46133548,0.00062465,120]
[340766425,1729789838491,-500.0,0.00062465,120]
[340766426,1729789838501,-463.99940005,0.00062465,120]
[340766429,1729789838516,-36.00059995,0.00062465,120]
[340766431,1729789838525,-505.68513041,0.00062465,120]
[340766433,1729789838534,-181.22547931,0.00062465,120]
[340766435,1729789838551,-318.77452069,0.00062465,120]
[340766437,1729789838561,-90.50547931,0.00062465,120]
[340766439,1729789838571,-409.49452069,0.00062465,120]
[340766441,1729789838580,-475.43193366,0.00062465,120]
[340766443,1729789838592,-24.56806634,0.00062465,120]
[340766445,1729789838601,-281.03995923,0.00062465,120]
[340766447,1729789838610,-505.16018532,0.00062465,120]
[340766449,1729789838620,-154.5792159,0.00062465,120]
[340766452,1729789838633,-511.5807841,0.00062465,120]
[340766454,1729789838642,-413.72595119,0.00062465,120]
[340766456,1729789838657,-252.43404881,0.00062465,120]
[340766458,1729789838666,-500.0,0.00062465,120]
[340766460,1729789838676,-666.16,0.00062465,120]
[340766462,1729789838685,-500.0,0.00062465,120]
[340766464,1729789838694,-666.16,0.00062465,120]
[340766466,1729789838704,-521.20146365,0.00062465,120]
[340766468,1729789838713,-666.16,0.00062465,120]
[340766470,1729789838722,-666.16,0.00062465,120]
[340766472,1729789838731,-666.16,0.00062465,120]
[340766474,1729789838740,-666.16,0.00062465,120]
[340766476,1729789838749,-666.16,0.00062465,120]
[340766478,1729789838758,-666.16,0.00062465,120]
[340766480,1729789838767,-666.16,0.00062465,120]
[340766481,1729789838776,-520.68674039,0.00062465,120]
[340766483,1729789838785,-666.16,0.00062465,120]
[340766485,1729789838794,-666.16,0.00062465,120]
[340766487,1729789838803,-666.16,0.00062465,120]
[340766489,1729789838812,-572.08315976,0.00062465,120]
[340766566,1729789839604,-0.05449216,0.00062465,120]
[340766572,1729789839707,-94.02234808,0.00062465,120]
[340766573,1729789839717,-500.0,0.00062465,120]
[340766574,1729789839727,-666.16,0.00062465,120]
[340766575,1729789839736,-500.0,0.00062465,120]
[340766576,1729789839747,-666.16,0.00062465,120]
[340766577,1729789839757,-354.49002717,0.00062465,120]
[340766578,1729789839767,-666.16,0.00062465,120]
[340766579,1729789839776,-666.16,0.00062465,120]
[340766580,1729789839787,-666.16,0.00062465,120]
[340766581,1729789839798,-666.16,0.00062465,120]
[340766582,1729789839807,-666.16,0.00062465,120]
[340766583,1729789839817,-666.16,0.00062465,120]
[340766584,1729789839829,-666.17294668,0.00062465,120]
[340766585,1729789839840,-521.98506545,0.00062465,120]
[340766586,1729789839851,-500.0,0.00062465,120]
[340766587,1729789839861,-500.0,0.00062465,120]
[340766588,1729789839871,-518.04258727,0.00062465,120]
[340766589,1729789839880,-500.0,0.00062465,120]
[340766591,1729789839889,-500.0,0.00062465,120]
[340766593,1729789839898,-500.0,0.00062465,120]
[340766594,1729789839908,-500.0,0.00062465,120]
[340766596,1729789839917,-500.0,0.00062465,120]
[340766598,1729789839927,-500.0,0.00062465,120]
[340766600,1729789839936,-500.0,0.00062465,120]
[340766602,1729789839945,-500.0,0.00062465,120]
[340766604,1729789839954,-500.0,0.00062465,120]
[340766605,1729789839963,-506.98126123,0.00062465,120]
[340766606,1729789839972,-500.0,0.00062465,120]
[340766607,1729789839981,-500.0,0.00062465,120]
[340766608,1729789839990,-500.0,0.00062465,120]
[340766609,1729789840000,-500.0,0.00062465,120]
[340766610,1729789840009,-624.25438985,0.00062465,120]
[340766611,1729789840019,-500.0,0.00062465,120]
[340766612,1729789840029,-500.0,0.00062465,120]
[340766613,1729789840039,-510.66095642,0.00062465,120]
[340766614,1729789840049,-502.91669435,0.00062465,120]
[340766615,1729789840059,-500.0,0.00062465,120]
[340766616,1729789840069,-502.6448918,0.00062465,120]
[340766617,1729789840080,-500.0,0.00062465,120]
[340766618,1729789840090,-500.0,0.00062465,120]
[340766619,1729789840099,-515.21400652,0.00062465,120]
[340766620,1729789840108,-500.0,0.00062465,120]
[340766621,1729789840117,-500.0,0.00062465,120]
[340766622,1729789840126,-501.51290583,0.00062465,120]
[340766623,1729789840137,-301.63352441,0.00062465,120]
[340766624,1729789840146,-500.0,0.00062465,120]
[340766625,1729789840158,-500.0,0.00062465,120]
[340766626,1729789840167,-643.76894522,0.00062465,120]
[340766627,1729789840176,-511.07365373,0.00062465,120]
[340766628,1729789840185,-502.26663468,0.00062465,120]
[340766629,1729789840195,-505.05891608,0.00062465,120]
[340766630,1729789840204,-500.0,0.00062465,120]
[340766631,1729789840213,-500.0,0.00062465,120]
[340766632,1729789840222,-424.8262213,0.00062465,120]
[340766633,1729789840231,-500.0,0.00062465,120]
[340766634,1729789840240,-504.08088203,0.00062465,120]
[340766635,1729789840249,-150.0,0.00062465,120]
[340766636,1729789840258,-150.0,0.00062465,120]
[340766637,1729789840267,-211.22476289,0.00062465,120]
[340766638,1729789840276,-500.0,0.00062465,120]
[340766639,1729789840285,-500.0,0.00062465,120]
[340766640,1729789840294,-500.0,0.00062465,120]
[340766641,1729789840307,-500.0,0.00062465,120]
[340766642,1729789840317,-500.0,0.00062465,120]
[340766643,1729789840326,-529.50530841,0.00062465,120]
[340766644,1729789840335,-500.0,0.00062465,120]
[340766645,1729789840344,-217.07343099,0.00062465,120]
[340766646,1729789840354,-500.0,0.00062465,120]
[340766647,1729789840363,-302.24462365,0.00062465,120]
[340766648,1729789840413,-197.75537635,0.00062465,120]
[340766649,1729789840422,-119.86338447,0.00062465,120]
[340766650,1729789840439,-400.84895135,0.00062465,120]
[340766651,1729789840452,-74.07577784,0.00062465,120]
[340766652,1729789840463,-500.0,0.00062465,120]
[340766653,1729789840472,-500.0,0.00062465,120]
[340766654,1729789840481,-500.0,0.00062465,120]
[340766655,1729789840490,-500.0,0.00062465,120]
[340766656,1729789840499,-500.0,0.00062465,120]
[340766657,1729789840508,-507.7850598,0.00062465,120]
[340766658,1729789840517,-500.0,0.00062465,120]
[340766659,1729789840526,-500.0,0.00062465,120]
[340766660,1729789840536,-500.0,0.00062465,120]
[340766661,1729789840545,-395.52397637,0.00062465,120]
[340766662,1729789840555,-500.0,0.00062465,120]
[340766663,1729789840564,-303.14132425,0.00062465,120]
[340766664,1729789840574,-500.0,0.00062465,120]
[340766665,1729789840583,-500.0,0.00062465,120]
[340766666,1729789840592,-508.88534813,0.00062465,120]
[340766667,1729789840601,-500.0,0.00062465,120]
[340766668,1729789840610,-500.0,0.00062465,120]
[340766669,1729789840619,-513.69621577,0.00062465,120]
[340766670,1729789840628,-500.0,0.00062465,120]
[340766671,1729789840638,-509.18508971,0.00062465,120]
[340766672,1729789840647,-505.29704826,0.00062465,120]
[340766673,1729789840656,-502.29015943,0.00062465,120]
[340766674,1729789840666,-508.13359167,0.00062465,120]
[340766675,1729789840675,-500.0,0.00062465,120]
[340766676,1729789840684,-500.0,0.00062465,120]
[340766677,1729789840693,-305.60848914,0.00062465,120]
[340766678,1729789840703,-500.0,0.00062465,120]
[340766679,1729789840712,-500.0,0.00062465,120]
[340766680,1729789840721,-503.31923876,0.00062465,120]
[340766681,1729789840730,-500.0,0.00062465,120]
[340766682,1729789840739,-649.92599694,0.00062465,120]
[340766683,1729789840749,-500.0,0.00062465,120]
[340766684,1729789840759,-500.0,0.00062465,120]
[340766685,1729789840768,-500.0,0.00062465,120]
[340766686,1729789840777,-500.0,0.00062465,120]
[340766687,1729789840789,-500.0,0.00062465,120]
[340766688,1729789840801,-507.39849891,0.00062465,120]
[340766689,1729789840810,-500.0,0.00062465,120]
[340766690,1729789840819,-445.05793738,0.00062465,120]
[340766691,1729789840828,-510.04992663,0.00062465,120]
[340766692,1729789840837,-500.0,0.00062465,120]
[340766693,1729789840846,-506.68742055,0.00062465,120]
[340766694,1729789840855,-500.0,0.00062465,120]
[340766695,1729789840864,-500.0,0.00062465,120]
[340766696,1729789840873,-500.0,0.00062465,120]
[340766697,1729789840882,-369.52408541,0.00062465,120]
[340766698,1729789840890,-546.32899909,0.00062465,120]
[340766699,1729789840900,-500.0,0.00062465,120]
[340766700,1729789840909,-500.0,0.00062465,120]
[340766701,1729789840918,-507.89496705,0.00062465,120]
[340766702,1729789840927,-509.52172391,0.00062465,120]
[340766703,1729789840936,-502.78977697,0.00062465,120]
[340766704,1729789840945,-602.51207544,0.00062465,120]
[340766705,1729789840954,-500.0,0.00062465,120]
[340766706,1729789840964,-500.0,0.00062465,120]
[340766707,1729789840973,-515.65674484,0.00062465,120]
[340766708,1729789840982,-500.0,0.00062465,120]
[340766709,1729789840992,-298.43788796,0.00062465,120]
[340766710,1729789841001,-500.0,0.00062465,120]
[340766711,1729789841010,-501.98377618,0.00062465,120]
[340766712,1729789841019,-583.50870821,0.00062465,120]
[340766713,1729789841028,-500.0,0.00062465,120]
[340766714,1729789841038,-500.0,0.00062465,120]
[340766715,1729789841047,-309.62628035,0.00062465,120]
[340766716,1729789841058,-500.0,0.00062465,120]
[340766717,1729789841067,-500.0,0.00062465,120]
[340766718,1729789841077,-561.64,0.00062465,120]
[340766719,1729789841089,-500.0,0.00062465,120]
[340766720,1729789841098,-500.0,0.00062465,120]
[340766721,1729789841107,-500.0,0.00062465,120]
[340766722,1729789841116,-561.64,0.00062465,120]
[340766723,1729789841127,-501.89818531,0.00062465,120]
[340766724,1729789841136,-561.64,0.00062465,120]
[340766725,1729789841145,-500.0,0.00062465,120]
[340766726,1729789841155,-561.64,0.00062465,120]
[340766727,1729789841164,-523.43859196,0.00062465,120]
[340766728,1729789841174,-561.64,0.00062465,120]
[340766729,1729789841183,-561.64,0.00062465,120]
[340766730,1729789841192,-561.64,0.00062465,120]
[340766731,1729789841201,-561.64,0.00062465,120]
[340766732,1729789841210,-561.64,0.00062465,120]
[340766733,1729789841219,-500.0,0.00062465,120]
[340766734,1729789841228,-561.64,0.00062465,120]
[340766735,1729789841237,-500.0,0.00062465,120]
[340766736,1729789841246,-500.0,0.00062465,120]
[340766737,1729789841255,-561.64,0.00062465,120]
[340766738,1729789841264,-288.35871093,0.00062465,120]
[340766739,1729789841273,-561.64,0.00062465,120]
[340766740,1729789841283,-561.64,0.00062465,120]
[340766741,1729789841292,-561.64,0.00062465,120]
[340766742,1729789841302,-561.64,0.00062465,120]
[340766743,1729789841311,-561.64,0.00062465,120]
[340766744,1729789841321,-561.64,0.00062465,120]
[340766745,1729789841330,-561.64,0.00062465,120]
[340766746,1729789841339,-500.0,0.00062465,120]
[340766747,1729789841349,-561.64,0.00062465,120]
[340766748,1729789841358,-500.0,0.00062465,120]
[340766749,1729789841367,-561.64,0.00062465,120]
[340766750,1729789841376,-462.01641678,0.00062465,120]
[340766751,1729789841385,-561.64,0.00062465,120]
[340766752,1729789841394,-561.64,0.00062465,120]
[340766753,1729789841403,-561.64,0.00062465,120]
[340766754,1729789841413,-561.82496888,0.00062465,120]
[340766755,1729789841422,-500.0,0.00062465,120]
[340766756,1729789841431,-500.40106669,0.00062465,120]
[340766757,1729789841441,-500.0,0.00062465,120]
[340766758,1729789841451,-519.99132452,0.00062465,120]
[340766759,1729789841460,-500.0,0.00062465,120]
[340766760,1729789841470,-500.0,0.00062465,120]
[340766761,1729789841479,-504.70441034,0.00062465,120]
[340766762,1729789841488,-500.0,0.00062465,120]
[340766763,1729789841497,-500.0,0.00062465,120]
[340766764,1729789841506,-478.21513454,0.00062465,120]
[340766765,1729789841516,-504.37053204,0.00062465,120]
[340766766,1729789841525,-500.0,0.00062465,120]
[340766767,1729789841534,-508.31519509,0.00062465,120]
[340766768,1729789841544,-500.0,0.00062465,120]
[340766769,1729789841554,-505.70639989,0.00062465,120]
[340766770,1729789841564,-500.0,0.00062465,120]
[340766772,1729789841573,-512.27013931,0.00062465,120]
[340766774,1729789841582,-500.0,0.00062465,120]
[340766775,1729789841591,-500.0,0.00062465,120]
[340766776,1729789841600,-500.0,0.00062465,120]
[340766777,1729789841609,-508.33609277,0.00062465,120]
[340766778,1729789841618,-500.0,0.00062465,120]
[340766779,1729789841628,-500.0,0.00062465,120]
[340766780,1729789841637,-500.0,0.00062465,120]
[340766781,1729789841647,-500.0,0.00062465,120]
[340766782,1729789841656,-500.0,0.00062465,120]
[340766783,1729789841665,-500.0,0.00062465,120]
[340766784,1729789841674,-500.0,0.00062465,120]
[340766785,1729789841683,-500.0,0.00062465,120]
[340766786,1729789841692,-500.0,0.00062465,120]
[340766787,1729789841702,-500.0,0.00062465,120]
[340766788,1729789841711,-500.0,0.00062465,120]
[340766789,1729789841720,-500.0,0.00062465,120]
[340766790,1729789841730,-500.0,0.00062465,120]
[340766791,1729789841740,-500.0,0.00062465,120]
[340766792,1729789841749,-500.0,0.00062465,120]
[340766793,1729789841759,-500.0,0.00062465,120]
[340766794,1729789841771,-500.0,0.00062465,120]
[340766795,1729789841780,-500.0,0.00062465,120]
[340766796,1729789841790,-500.0,0.00062465,120]
[340766797,1729789841799,-616.10366049,0.00062465,120]
[340766798,1729789841809,-500.0,0.00062465,120]
[340766800,1729789841818,-505.39777655,0.00062465,120]
[340766802,1729789841827,-500.0,0.00062465,120]
[340766804,1729789841837,-507.71047453,0.00062465,120]
[340766805,1729789841846,-500.0,0.00062465,120]
[340766807,1729789841855,-515.00988033,0.00062465,120]
[340766809,1729789841864,-500.0,0.00062465,120]
[340766811,1729789841873,-503.54740389,0.00062465,120]
[340766813,1729789841883,-1639.29,0.00062465,120]
[340766815,1729789841892,-1639.29,0.00062465,120]
[340766817,1729789841901,-1639.29,0.00062465,120]
[340766819,1729789841911,-1639.29,0.00062465,120]
[340766821,1729789841920,-1639.29,0.00062465,120]
[340766823,1729789841929,-1639.29,0.00062465,120]
[340766825,1729789841939,-1639.29,0.00062465,120]
[340766827,1729789841949,-1639.29,0.00062465,120]
[340766829,1729789841958,-500.0,0.00062465,120]
[340766831,1729789841967,-500.0,0.00062465,120]
[340766833,1729789841978,-500.0,0.00062465,120]
[340766835,1729789841987,-500.0,0.00062465,120]
[340766837,1729789841996,-500.0,0.00062465,120]
[340766839,1729789842005,-500.0,0.00062465,120]
[340766841,1729789842015,-628.96737637,0.00062465,120]
[340766843,1729789842024,-500.0,0.00062465,120]
[340766845,1729789842034,-500.0,0.00062465,120]
[340766847,1729789842043,-507.88782162,0.00062465,120]
[340766849,1729789842053,-500.0,0.00062465,120]
[340766850,1729789842062,-501.77351682,0.00062465,120]
[340766852,1729789842071,-432.52796635,0.00062465,120]
[340766854,1729789842084,-501.68391641,0.00062465,120]
[340766856,1729789842093,-500.0,0.00062465,120]
[340766858,1729789842102,-544.73320671,0.00062465,120]
[340766860,1729789842111,-500.0,0.00062465,120]
[340766861,1729789842120,-500.0,0.00062465,120]
[340766863,1729789842130,-500.0,0.00062465,120]
[340766865,1729789842138,-502.1998348,0.00062465,120]
[340766867,1729789842148,-500.0,0.00062465,120]
[340766869,1729789842157,-500.0,0.00062465,120]
[340766871,1729789842166,-428.58454354,0.00062465,120]
[340766873,1729789842176,-516.54267148,0.00062465,120]
[340766875,1729789842185,-500.0,0.00062465,120]
[340766877,1729789842195,-613.98426233,0.00062465,120]
[340766879,1729789842205,-500.0,0.00062465,120]
[340766880,1729789842216,-501.92439154,0.00062465,120]
[340766883,1729789842229,-500.0,0.00062465,120]
[340766886,1729789842238,-500.0,0.00062465,120]
[340766889,1729789842248,-530.27728948,0.00062465,120]
[340766892,1729789842257,-500.0,0.00062465,120]
[340766895,1729789842266,-500.0,0.00062465,120]
[340766897,1729789842275,-513.60243975,0.00062465,120]
[340766899,1729789842284,-500.0,0.00062465,120]
[340766901,1729789842293,-505.93499207,0.00062465,120]
[340766903,1729789842304,-500.0,0.00062465,120]
[340766905,1729789842313,-500.0,0.00062465,120]
[340766907,1729789842321,-500.0,0.00062465,120]
[340766909,1729789842331,-508.10297885,0.00062465,120]
[340766911,1729789842342,-500.0,0.00062465,120]
[340766913,1729789842351,-500.0,0.00062465,120]
[340766915,1729789842361,-500.0,0.00062465,120]
[340766917,1729789842370,-500.0,0.00062465,120]
[340766919,1729789842379,-500.0,0.00062465,120]
[340766921,1729789842389,-506.61634415,0.00062465,120]
[340766924,1729789842397,-508.82164707,0.00062465,120]
[340766926,1729789842407,-500.0,0.00062465,120]
[340766928,1729789842415,-547.74637525,0.00062465,120]
[340766930,1729789842424,-500.0,0.00062465,120]
[340766932,1729789842433,-500.0,0.00062465,120]
[340766934,1729789842442,-500.0,0.00062465,120]
[340766935,1729789842451,-505.91160893,0.00062465,120]
[340766937,1729789842462,-500.0,0.00062465,120]
[340766939,1729789842471,-500.0,0.00062465,120]
[340766941,1729789842479,-500.0,0.00062465,120]
[340766943,1729789842489,-504.21599993,0.00062465,120]
[340766945,1729789842498,-500.0,0.00062465,120]
[340766959,1729789842636,-500.0,0.00062465,120]
[340766961,1729789842645,-506.15223849,0.00062465,120]
[340766963,1729789842655,-500.0,0.00062465,120]
[340766965,1729789842665,-500.0,0.00062465,120]
[340766967,1729789842674,-500.0,0.00062465,120]
[340766969,1729789842683,-500.0,0.00062465,120]
[340766971,1729789842692,-500.0,0.00062465,120]
[340766972,1729789842701,-500.0,0.00062465,120]
[340766974,1729789842710,-500.0,0.00062465,120]
[340766976,1729789842719,-500.0,0.00062465,120]
[340766978,1729789842728,-500.0,0.00062465,120]
[340766980,1729789842737,-500.0,0.00062465,120]
[340766982,1729789842746,-500.0,0.00062465,120]
[340766984,1729789842755,-500.0,0.00062465,120]
[340766986,1729789842764,-500.0,0.00062465,120]
[340766988,1729789842773,-391.18907067,0.00062465,120]
[340766990,1729789842783,-2078.41,0.00062465,120]
[340766992,1729789842792,-500.0,0.00062465,120]
[340766994,1729789842802,-500.0,0.00062465,120]
[340766996,1729789842814,-2078.41,0.00062465,120]
[340766998,1729789842823,-500.0,0.00062465,120]
[340766999,1729789842831,-502.9128396,0.00062465,120]
[340767001,1729789842841,-2078.41,0.00062465,120]
[340767003,1729789842850,-500.0,0.00062465,120]
[340767005,1729789842858,-500.0,0.00062465,120]
[340767007,1729789842868,-2078.41,0.00062465,120]
[340767009,1729789842876,-500.0,0.00062465,120]
[340767011,1729789842886,-2078.41,0.00062465,120]
[340767012,1729789842895,-2078.41,0.00062465,120]
[340767014,1729789842904,-2078.41,0.00062465,120]
[340767016,1729789842913,-500.0,0.00062465,120]
[340767018,1729789842922,-500.0,0.00062465,120]
[340767020,1729789842932,-2078.41,0.00062465,120]
[340767022,1729789842943,-507.4768402,0.00062465,120]
[340767024,1729789842952,-584.59481343,0.00062465,120]
[340767026,1729789842962,-500.0,0.00062465,120]
[340767028,1729789842972,-2078.41,0.00062465,120]
[340767030,1729789842982,-503.20163782,0.00062465,120]
[340767032,1729789842991,-2078.41,0.00062465,120]
[340767034,1729789843000,-500.0,0.00062465,120]
[340767036,1729789843009,-2078.41,0.00062465,120]
[340767038,1729789843018,-501.54713812,0.00062465,120]
[340767040,1729789843027,-2078.41,0.00062465,120]
[340767042,1729789843037,-2078.41,0.00062465,120]
[340767044,1729789843046,-500.0,0.00062465,120]
[340767046,1729789843055,-2078.41,0.00062465,120]
[340767048,1729789843065,-503.37515407,0.00062465,120]
[340767050,1729789843074,-500.0,0.00062465,120]
[340767052,1729789843091,-500.0,0.00062465,120]
[340767054,1729789843101,-2078.41,0.00062465,120]
[340767056,1729789843111,-508.99407131,0.00062465,120]
[340767058,1729789843120,-340.1586959,0.00062465,120]
[340767060,1729789843131,-2078.41,0.00062465,120]
[340767062,1729789843140,-2078.41,0.00062465,120]
[340767064,1729789843149,-500.0,0.00062465,120]
[340767066,1729789843159,-2078.41,0.00062465,120]
[340767068,1729789843169,-2078.41,0.00062465,120]
[340767070,1729789843178,-2078.41,0.00062465,120]
[340767071,1729789843188,-2078.41,0.00062465,120]
[340767073,1729789843197,-500.0,0.00062465,120]
[340767075,1729789843206,-500.0,0.00062465,120]
[340767077,1729789843215,-500.0,0.00062465,120]
[340767080,1729789843225,-500.0,0.00062465,120]
[340767082,1729789843236,-2078.41,0.00062465,120]
[340767084,1729789843245,-500.0,0.00062465,120]
[340767086,1729789843254,-500.0,0.00062465,120]
[340767088,1729789843263,-500.0,0.00062465,120]
[340767090,1729789843272,-500.0,0.00062465,120]
[340767091,1729789843282,-2078.41,0.00062465,120]
[340767093,1729789843291,-500.0,0.00062465,120]
[340767095,1729789843300,-423.89910994,0.00062465,120]
[340767097,1729789843312,-556.09,0.00062465,120]
[340767099,1729789843322,-500.0,0.00062465,120]
[340767101,1729789843331,-503.04193212,0.00062465,120]
[340767103,1729789843340,-2078.44,0.00062465,120]
[340767105,1729789843349,-556.09,0.00062465,120]
[340767107,1729789843359,-500.0,0.00062465,120]
[340767109,1729789843368,-556.09,0.00062465,120]
[340767111,1729789843377,-500.0,0.00062465,120]
[340767113,1729789843387,-556.09,0.00062465,120]
[340767114,1729789843396,-502.29510847,0.00062465,120]
[340767116,1729789843405,-556.09,0.00062465,120]
[340767118,1729789843414,-556.09,0.00062465,120]
[340767120,1729789843424,-556.09,0.00062465,120]
[340767122,1729789843433,-500.0,0.00062465,120]
[340767124,1729789843443,-556.09,0.00062465,120]
[340767126,1729789843452,-500.0,0.00062465,120]
[340767128,1729789843461,-500.0,0.00062465,120]
[340767130,1729789843470,-500.0,0.00062465,120]
[340767132,1729789843479,-500.0,0.00062465,120]
[340767134,1729789843489,-184.55501426,0.00062465,120]
[340767136,1729789843498,-500.0,0.00062465,120]
[340767137,1729789843507,-500.0,0.00062465,120]
[340767139,1729789843517,-504.71465954,0.00062465,120]
[340767141,1729789843526,-500.0,0.00062465,120]
[340767143,1729789843536,-511.66960212,0.00062465,120]
[340767145,1729789843545,-500.0,0.00062465,120]
[340767147,1729789843555,-508.69714417,0.00062465,120]
[340767149,1729789843564,-500.0,0.00062465,120]
[340767150,1729789843574,-509.13387702,0.00062465,120]
[340767152,1729789843583,-500.0,0.00062465,120]
[340767154,1729789843592,-500.0,0.00062465,120]
[340767156,1729789843601,-500.0,0.00062465,120]
[340767158,1729789843610,-500.0,0.00062465,120]
[340767160,1729789843620,-500.0,0.00062465,120]
[340767162,1729789843629,-500.0,0.00062465,120]
[340767163,1729789843639,-500.0,0.00062465,120]
[340767165,1729789843649,-500.0,0.00062465,120]
[340767167,1729789843658,-500.0,0.00062465,120]
[340767169,1729789843668,-508.97150916,0.00062465,120]